[Event "Titled Tuesday Blitz April 25 Early 2023"]
[White "Prieto Aranguren, Alain"]
[Black "Kalajzic, Ivan"]
[WhiteFideId "2268906"]
[BlackFideId "14506378"]
[WhiteElo "2209"]
[BlackElo "2203"]
[Result "1-0"]
[Round "07"]
[TimeControl "180+2"]
[Date "2023.04.25"]
[WhiteClock "0:00:57"]
[BlackClock "0:01:33"]

1. d4 {[%clk 0:02:30]}  Nc6 {[%clk 0:03:00]} 2. d5 {[%clk 0:02:30]}  Ne5 {[%clk 0:03:00]} 3. Nf3 {[%clk 0:02:30]}  Nxf3+ {[%clk 0:02:56]} 4. exf3 {[%clk 0:02:30]}  e6 {[%clk 0:02:57]} 5. dxe6 {[%clk 0:02:27]}  fxe6 {[%clk 0:02:56]} 6. Bd3 {[%clk 0:02:26]}  Nf6 {[%clk 0:02:54]} 7. Bg5 {[%clk 0:02:26]}  Be7 {[%clk 0:02:53]} 8. Nd2 {[%clk 0:02:26]}  O-O {[%clk 0:02:53]} 9. c3 {[%clk 0:02:26]}  Nd5 {[%clk 0:02:49]} 10. Bxe7 {[%clk 0:02:25]}  Qxe7 {[%clk 0:02:49]} 11. Qc2 {[%clk 0:02:24]}  g6 {[%clk 0:02:48]} 12. h4 {[%clk 0:02:24]}  Nf4 {[%clk 0:02:48]} 13. Bf1 {[%clk 0:02:21]}  b6 {[%clk 0:02:43]} 14. g3 {[%clk 0:02:21]}  Nh5 {[%clk 0:02:40]} 15. Bd3 {[%clk 0:02:20]}  Bb7 {[%clk 0:02:39]} 16. O-O-O {[%clk 0:02:20]}  Bxf3 {[%clk 0:02:37]} 17. Nxf3 {[%clk 0:02:20]}  Rxf3 {[%clk 0:02:38]} 18. Be4 {[%clk 0:02:18]}  Raf8 {[%clk 0:02:36]} 19. Bxf3 {[%clk 0:02:18]}  Rxf3 {[%clk 0:02:37]} 20. Qe2 {[%clk 0:02:08]}  Rf7 {[%clk 0:02:28]} 21. Rd2 {[%clk 0:01:59]}  d6 {[%clk 0:02:28]} 22. Re1 {[%clk 0:01:58]}  e5 {[%clk 0:02:26]} 23. Qe4 {[%clk 0:01:55]}  Qf8 {[%clk 0:02:23]} 24. Ree2 {[%clk 0:01:50]}  a5 {[%clk 0:02:23]} 25. Qd5 {[%clk 0:01:47]}  Nf6 {[%clk 0:02:22]} 26. Qe6 {[%clk 0:01:46]}  Kg7 {[%clk 0:02:22]} 27. a3 {[%clk 0:01:43]}  h5 {[%clk 0:02:21]} 28. Kb1 {[%clk 0:01:43]}  Ng4 {[%clk 0:02:21]} 29. Ka2 {[%clk 0:01:34]}  Rf6 {[%clk 0:02:16]} 30. Qd7+ {[%clk 0:01:33]}  Qf7+ {[%clk 0:02:15]} 31. Qxf7+ {[%clk 0:01:33]}  Kxf7 {[%clk 0:02:14]} 32. Kb3 {[%clk 0:01:33]}  Rf3 {[%clk 0:02:13]} 33. Kc4 {[%clk 0:01:30]}  Ke6 {[%clk 0:02:13]} 34. Kb5 {[%clk 0:01:30]}  Nf6 {[%clk 0:02:08]} 35. Kc6 {[%clk 0:01:25]}  Ne8 {[%clk 0:02:07]} 36. Re3 {[%clk 0:01:17]}  Rf7 {[%clk 0:02:06]} 37. f4 {[%clk 0:01:13]}  Ng7 {[%clk 0:01:59]} 38. fxe5 {[%clk 0:01:08]}  dxe5 {[%clk 0:02:00]} 39. Rde2 {[%clk 0:01:08]}  Rf5 {[%clk 0:01:47]} 40. Kxc7 {[%clk 0:01:05]}  b5 {[%clk 0:01:47]} 41. Kb6 {[%clk 0:01:05]}  b4 {[%clk 0:01:39]} 42. cxb4 {[%clk 0:01:04]}  axb4 {[%clk 0:01:40]} 43. a4 {[%clk 0:01:04]}  Rf8 {[%clk 0:01:39]} 44. a5 {[%clk 0:01:03]}  Nf5 {[%clk 0:01:38]} 45. Rxe5+ {[%clk 0:01:02]}  Kf6 {[%clk 0:01:37]} 46. Rxf5+ {[%clk 0:01:00]}  gxf5 {[%clk 0:01:35]} 47. a6 {[%clk 0:01:00]}  Rg8 {[%clk 0:01:33]} 48. a7 {[%clk 0:00:57]} 1-0


[Site "https://www.chess.com"]

[Event "Titled Tuesday Blitz April 25 Early 2023"]
[White "Luukkonen, Tommi"]
[Black "Bueno, Alfeu Junior Varela"]
[WhiteFideId "501808"]
[BlackFideId "2108879"]
[WhiteElo "2296"]
[BlackElo "2175"]
[Result "1-0"]
[Round "07"]
[TimeControl "180+2"]
[Date "2023.04.25"]
[WhiteClock "0:00:46"]
[BlackClock "0:01:28"]

1. e4 {[%clk 0:02:55]}  e6 {[%clk 0:03:00]} 2. d4 {[%clk 0:02:55]}  d5 {[%clk 0:03:00]} 3. e5 {[%clk 0:02:55]}  c5 {[%clk 0:03:00]} 4. c3 {[%clk 0:02:56]}  Nc6 {[%clk 0:03:01]} 5. Nf3 {[%clk 0:02:56]}  Bd7 {[%clk 0:03:01]} 6. Be2 {[%clk 0:02:54]}  Nge7 {[%clk 0:03:00]} 7. Na3 {[%clk 0:02:54]}  Nf5 {[%clk 0:03:00]} 8. Nc2 {[%clk 0:02:53]}  Rc8 {[%clk 0:02:56]} 9. O-O {[%clk 0:02:52]}  cxd4 {[%clk 0:02:55]} 10. cxd4 {[%clk 0:02:52]}  Nb4 {[%clk 0:02:56]} 11. Nxb4 {[%clk 0:02:51]}  Bxb4 {[%clk 0:02:56]} 12. a3 {[%clk 0:02:48]}  Be7 {[%clk 0:02:57]} 13. Kh1 {[%clk 0:02:47]}  O-O {[%clk 0:02:56]} 14. g4 {[%clk 0:02:47]}  Nh4 {[%clk 0:02:56]} 15. Nxh4 {[%clk 0:02:43]}  Bxh4 {[%clk 0:02:57]} 16. Bd3 {[%clk 0:02:43]}  f6 {[%clk 0:02:54]} 17. f4 {[%clk 0:02:20]}  fxe5 {[%clk 0:02:54]} 18. dxe5 {[%clk 0:02:17]}  Be7 {[%clk 0:02:32]} 19. f5 {[%clk 0:02:14]}  Bg5 {[%clk 0:02:23]} 20. Qf3 {[%clk 0:01:35]}  Qe7 {[%clk 0:02:03]} 21. Bxg5 {[%clk 0:01:27]}  Qxg5 {[%clk 0:02:04]} 22. Rae1 {[%clk 0:01:27]}  Rf7 {[%clk 0:01:53]} 23. Rf2 {[%clk 0:00:56]}  Rcf8 {[%clk 0:01:48]} 24. Ref1 {[%clk 0:00:55]}  h5 {[%clk 0:01:48]} 25. gxh5 {[%clk 0:00:51]}  exf5 {[%clk 0:01:47]} 26. Rg1 {[%clk 0:00:48]}  Qh6 {[%clk 0:01:39]} 27. Rg6 {[%clk 0:00:47]}  Qh7 {[%clk 0:01:38]} 28. e6 {[%clk 0:00:47]}  Bxe6 {[%clk 0:01:35]} 29. Rxe6 {[%clk 0:00:48]}  Qh6 {[%clk 0:01:28]} 30. Rxh6 {[%clk 0:00:46]} 1-0


[Site "https://www.chess.com"]

[Event "Titled Tuesday Blitz April 25 Early 2023"]
[White "Chakravarthi Reddy, M"]
[Black "Dwilewicz, Katarzyna"]
[WhiteFideId "25009532"]
[BlackFideId "1148486"]
[WhiteElo "2201"]
[BlackElo "2065"]
[Result "0-1"]
[Round "07"]
[TimeControl "180+2"]
[Date "2023.04.25"]
[WhiteClock "0:01:35"]
[BlackClock "0:01:26"]

1. e4 {[%clk 0:03:00]}  c5 {[%clk 0:02:53]} 2. Nf3 {[%clk 0:03:00]}  d6 {[%clk 0:02:52]} 3. d4 {[%clk 0:02:59]}  cxd4 {[%clk 0:02:52]} 4. Nxd4 {[%clk 0:03:00]}  Nf6 {[%clk 0:02:53]} 5. Nc3 {[%clk 0:03:00]}  a6 {[%clk 0:02:53]} 6. Bg5 {[%clk 0:03:01]}  Nbd7 {[%clk 0:02:52]} 7. Qe2 {[%clk 0:02:59]}  g6 {[%clk 0:02:52]} 8. O-O-O {[%clk 0:02:57]}  Bg7 {[%clk 0:02:53]} 9. h4 {[%clk 0:02:57]}  h6 {[%clk 0:02:49]} 10. Be3 {[%clk 0:02:56]}  O-O {[%clk 0:02:50]} 11. f4 {[%clk 0:02:56]}  Qc7 {[%clk 0:02:48]} 12. h5 {[%clk 0:02:56]}  Nxh5 {[%clk 0:02:39]} 13. Rxh5 {[%clk 0:02:55]}  gxh5 {[%clk 0:02:39]} 14. Qxh5 {[%clk 0:02:52]}  Nf6 {[%clk 0:02:39]} 15. Qh1 {[%clk 0:02:42]}  Bg4 {[%clk 0:02:37]} 16. Be2 {[%clk 0:02:38]}  Bxe2 {[%clk 0:02:36]} 17. Ndxe2 {[%clk 0:02:31]}  b5 {[%clk 0:02:35]} 18. f5 {[%clk 0:02:22]}  b4 {[%clk 0:02:29]} 19. Bxh6 {[%clk 0:02:22]}  bxc3 {[%clk 0:02:27]} 20. Bxg7 {[%clk 0:02:22]}  Kxg7 {[%clk 0:02:27]} 21. Rd3 {[%clk 0:02:16]}  cxb2+ {[%clk 0:02:26]} 22. Kb1 {[%clk 0:02:16]}  Nxe4 {[%clk 0:02:05]} 23. Qh4 {[%clk 0:01:52]}  Rh8 {[%clk 0:01:41]} 24. Qxe4 {[%clk 0:01:51]}  Rh1+ {[%clk 0:01:39]} 25. Kxb2 {[%clk 0:01:51]}  Rb8+ {[%clk 0:01:39]} 26. Rb3 {[%clk 0:01:51]}  Rxb3+ {[%clk 0:01:36]} 27. axb3 {[%clk 0:01:51]}  Qc5 {[%clk 0:01:33]} 28. Nc3 {[%clk 0:01:39]}  Qe5 {[%clk 0:01:27]} 29. Qf4 {[%clk 0:01:35]}  Qxf4 {[%clk 0:01:26]} 0-1


[Site "https://www.chess.com"]

[Event "Titled Tuesday Blitz April 25 Early 2023"]
[White "Vargas, Mauricio"]
[Black "Jiganchine, Roman"]
[WhiteFideId "4404572"]
[BlackFideId "2603667"]
[WhiteElo "1998"]
[BlackElo "2249"]
[Result "0-1"]
[Round "07"]
[TimeControl "180+2"]
[Date "2023.04.25"]
[WhiteClock "0:00:05"]
[BlackClock "0:01:08"]

1. f3 {[%clk 0:00:59]}  d5 {[%clk 0:02:59]} 2. e4 {[%clk 0:00:59]}  c6 {[%clk 0:02:55]} 3. d3 {[%clk 0:00:49]}  e5 {[%clk 0:02:54]} 4. g3 {[%clk 0:00:49]}  h5 {[%clk 0:02:53]} 5. Bg2 {[%clk 0:00:48]}  h4 {[%clk 0:02:52]} 6. Nc3 {[%clk 0:00:32]}  Be7 {[%clk 0:02:49]} 7. f4 {[%clk 0:00:31]}  Nf6 {[%clk 0:02:12]} 8. fxe5 {[%clk 0:00:30]}  Ng4 {[%clk 0:02:12]} 9. h3 {[%clk 0:00:25]}  Nxe5 {[%clk 0:02:05]} 10. g4 {[%clk 0:00:23]}  d4 {[%clk 0:01:58]} 11. Nce2 {[%clk 0:00:20]}  c5 {[%clk 0:01:58]} 12. Bf4 {[%clk 0:00:18]}  Nbc6 {[%clk 0:01:56]} 13. Qd2 {[%clk 0:00:18]}  Be6 {[%clk 0:01:55]} 14. a3 {[%clk 0:00:17]}  Qb6 {[%clk 0:01:54]} 15. O-O-O {[%clk 0:00:17]}  O-O {[%clk 0:01:41]} 16. Nf3 {[%clk 0:00:17]}  Nxf3 {[%clk 0:01:37]} 17. Bxf3 {[%clk 0:00:17]}  c4 {[%clk 0:01:32]} 18. dxc4 {[%clk 0:00:16]}  Rfd8 {[%clk 0:01:28]} 19. g5 {[%clk 0:00:07]}  Bxc4 {[%clk 0:01:26]} 20. Qe1 {[%clk 0:00:06]}  d3 {[%clk 0:01:19]} 21. cxd3 {[%clk 0:00:05]}  Bxa3 {[%clk 0:01:11]} 22. Rd2 {[%clk 0:00:05]}  Bxd3 {[%clk 0:01:08]} 0-1


[Site "https://www.chess.com"]

[Event "Titled Tuesday Blitz April 25 Early 2023"]
[White "Kiseleva, Arina"]
[Black "Sohier, Julien"]
[WhiteFideId "4164989"]
[BlackFideId "645346"]
[WhiteElo "1708"]
[BlackElo "2209"]
[Result "1-0"]
[Round "07"]
[TimeControl "180+2"]
[Date "2023.04.25"]
[WhiteClock "0:00:20"]
[BlackClock "0:00:07"]

1. d4 {[%clk 0:03:00]}  d5 {[%clk 0:02:52]} 2. Nf3 {[%clk 0:03:00]}  Nf6 {[%clk 0:02:51]} 3. e3 {[%clk 0:03:00]}  e6 {[%clk 0:02:43]} 4. Bd3 {[%clk 0:02:59]}  c5 {[%clk 0:02:34]} 5. O-O {[%clk 0:02:58]}  Nc6 {[%clk 0:02:33]} 6. b3 {[%clk 0:02:54]}  Bd6 {[%clk 0:02:28]} 7. Bb2 {[%clk 0:02:52]}  O-O {[%clk 0:02:28]} 8. Nbd2 {[%clk 0:02:50]}  b6 {[%clk 0:02:25]} 9. dxc5 {[%clk 0:02:48]}  bxc5 {[%clk 0:02:22]} 10. c4 {[%clk 0:02:45]}  Ba6 {[%clk 0:02:14]} 11. Qe2 {[%clk 0:02:43]}  Nb4 {[%clk 0:02:05]} 12. Bb1 {[%clk 0:02:21]}  Qe7 {[%clk 0:01:27]} 13. a3 {[%clk 0:02:04]}  Nc6 {[%clk 0:01:26]} 14. Qd3 {[%clk 0:02:03]}  g6 {[%clk 0:01:07]} 15. Qc3 {[%clk 0:01:53]}  e5 {[%clk 0:00:59]} 16. Re1 {[%clk 0:01:33]}  d4 {[%clk 0:00:59]} 17. exd4 {[%clk 0:01:32]}  cxd4 {[%clk 0:00:58]} 18. Qc2 {[%clk 0:01:22]}  Rfe8 {[%clk 0:00:39]} 19. Nxd4 {[%clk 0:01:10]}  Nxd4 {[%clk 0:00:39]} 20. Bxd4 {[%clk 0:01:10]}  Bb7 {[%clk 0:00:30]} 21. Bc3 {[%clk 0:01:07]}  Ng4 {[%clk 0:00:30]} 22. Ne4 {[%clk 0:00:59]}  Qh4 {[%clk 0:00:21]} 23. h3 {[%clk 0:00:58]}  Bxe4 {[%clk 0:00:20]} 24. Rxe4 {[%clk 0:00:58]}  f5 {[%clk 0:00:19]} 25. Re2 {[%clk 0:00:50]}  Nxf2 {[%clk 0:00:16]} 26. Rxf2 {[%clk 0:00:40]}  Bc5 {[%clk 0:00:16]} 27. Kf1 {[%clk 0:00:41]}  Bxf2 {[%clk 0:00:13]} 28. Qxf2 {[%clk 0:00:42]}  Qg5 {[%clk 0:00:13]} 29. Bc2 {[%clk 0:00:32]}  Rad8 {[%clk 0:00:12]} 30. Re1 {[%clk 0:00:31]}  e4 {[%clk 0:00:12]} 31. Qxa7 {[%clk 0:00:27]}  Qe7 {[%clk 0:00:12]} 32. Qe3 {[%clk 0:00:23]}  Qd7 {[%clk 0:00:07]} 33. c5 {[%clk 0:00:20]} 1-0


[Site "https://www.chess.com"]

[Event "Titled Tuesday Blitz April 25 Early 2023"]
[White "Amitpal, Singh"]
[Black "Necula, Iulian"]
[WhiteFideId "5012899"]
[BlackFideId "1232380"]
[WhiteElo "2107"]
[BlackElo "1790"]
[Result "1/2-1/2"]
[Round "07"]
[TimeControl "180+2"]
[Date "2023.04.25"]
[WhiteClock "0:00:31"]
[BlackClock "0:00:54"]

1. e4 {[%clk 0:03:00]}  d6 {[%clk 0:03:00]} 2. d4 {[%clk 0:02:58]}  Nf6 {[%clk 0:03:01]} 3. Nc3 {[%clk 0:02:56]}  e5 {[%clk 0:03:02]} 4. dxe5 {[%clk 0:02:56]}  dxe5 {[%clk 0:03:02]} 5. Qxd8+ {[%clk 0:02:55]}  Kxd8 {[%clk 0:03:03]} 6. Nf3 {[%clk 0:02:56]}  Bd6 {[%clk 0:03:02]} 7. Bc4 {[%clk 0:02:52]}  Be6 {[%clk 0:03:02]} 8. Bxe6 {[%clk 0:02:51]}  fxe6 {[%clk 0:03:03]} 9. Ng5 {[%clk 0:02:50]}  Ke7 {[%clk 0:03:00]} 10. Be3 {[%clk 0:02:44]}  h6 {[%clk 0:02:59]} 11. Nf3 {[%clk 0:02:42]}  a6 {[%clk 0:02:59]} 12. O-O-O {[%clk 0:02:41]}  Nbd7 {[%clk 0:02:51]} 13. Na4 {[%clk 0:02:39]}  b5 {[%clk 0:02:48]} 14. Nc3 {[%clk 0:02:38]}  b4 {[%clk 0:02:46]} 15. Ne2 {[%clk 0:02:34]}  Nxe4 {[%clk 0:02:45]} 16. Ng3 {[%clk 0:02:25]}  Nxg3 {[%clk 0:02:43]} 17. hxg3 {[%clk 0:02:25]}  Rhf8 {[%clk 0:02:40]} 18. Rh4 {[%clk 0:02:20]}  a5 {[%clk 0:02:30]} 19. g4 {[%clk 0:01:45]}  Nf6 {[%clk 0:02:06]} 20. g5 {[%clk 0:01:39]}  Nd5 {[%clk 0:02:06]} 21. gxh6 {[%clk 0:01:37]}  Nxe3 {[%clk 0:02:05]} 22. hxg7 {[%clk 0:01:33]}  Rg8 {[%clk 0:01:49]} 23. fxe3 {[%clk 0:01:32]}  Rxg7 {[%clk 0:01:49]} 24. Rh5 {[%clk 0:01:16]}  e4 {[%clk 0:01:42]} 25. Ne1 {[%clk 0:01:12]}  a4 {[%clk 0:01:32]} 26. Rh4 {[%clk 0:01:11]}  Bg3 {[%clk 0:01:25]} 27. Rxe4 {[%clk 0:01:08]}  Bxe1 {[%clk 0:01:25]} 28. Rxe1 {[%clk 0:01:07]}  b3 {[%clk 0:01:25]} 29. axb3 {[%clk 0:00:58]}  axb3 {[%clk 0:01:26]} 30. Rc4 {[%clk 0:00:58]}  Ra1+ {[%clk 0:01:23]} 31. Kd2 {[%clk 0:00:58]}  Rxg2+ {[%clk 0:01:23]} 32. Re2 {[%clk 0:00:55]}  Rxe2+ {[%clk 0:01:06]} 33. Kxe2 {[%clk 0:00:54]}  bxc2 {[%clk 0:01:05]} 34. Rxc7+ {[%clk 0:00:54]}  Kd6 {[%clk 0:01:05]} 35. Rxc2 {[%clk 0:00:53]}  Kd5 {[%clk 0:01:02]} 36. Kd3 {[%clk 0:00:50]}  Rd1+ {[%clk 0:01:00]} 37. Rd2 {[%clk 0:00:50]}  Rb1 {[%clk 0:01:00]} 38. e4+ {[%clk 0:00:47]}  Ke5 {[%clk 0:00:57]} 39. Ke3 {[%clk 0:00:39]}  Re1+ {[%clk 0:00:55]} 40. Re2 {[%clk 0:00:39]}  Rb1 {[%clk 0:00:55]} 41. Rd2 {[%clk 0:00:36]}  Re1+ {[%clk 0:00:54]} 42. Re2 {[%clk 0:00:31]} 1/2-1/2


[Site "https://www.chess.com"]

[Event "Titled Tuesday Blitz April 25 Early 2023"]
[White "Korobov, Anton"]
[Black "Nakamura, Hikaru"]
[WhiteFideId "14105730"]
[BlackFideId "2016192"]
[WhiteElo "2638"]
[BlackElo "2885"]
[Result "0-1"]
[Round "08"]
[TimeControl "180+2"]
[Date "2023.04.25"]
[WhiteClock "0:00:06"]
[BlackClock "0:00:41"]

1. d4 {[%clk 0:03:00]}  Nf6 {[%clk 0:03:00]} 2. c4 {[%clk 0:03:00]}  e6 {[%clk 0:03:00]} 3. Nf3 {[%clk 0:03:01]}  d5 {[%clk 0:03:00]} 4. Nc3 {[%clk 0:02:59]}  dxc4 {[%clk 0:02:56]} 5. e4 {[%clk 0:02:59]}  b5 {[%clk 0:02:55]} 6. e5 {[%clk 0:02:58]}  Nd5 {[%clk 0:02:55]} 7. Nxb5 {[%clk 0:02:59]}  Nb6 {[%clk 0:02:56]} 8. Be2 {[%clk 0:02:58]}  Bb7 {[%clk 0:02:56]} 9. O-O {[%clk 0:02:58]}  Qd7 {[%clk 0:02:57]} 10. Nc3 {[%clk 0:02:58]}  Nc6 {[%clk 0:02:57]} 11. Qd2 {[%clk 0:02:49]}  Ne7 {[%clk 0:02:55]} 12. Qf4 {[%clk 0:02:41]}  Nf5 {[%clk 0:02:45]} 13. Rd1 {[%clk 0:02:30]}  Be7 {[%clk 0:02:35]} 14. g4 {[%clk 0:02:20]}  Nh4 {[%clk 0:02:19]} 15. Nxh4 {[%clk 0:02:10]}  g5 {[%clk 0:02:19]} 16. Qe3 {[%clk 0:01:59]}  gxh4 {[%clk 0:02:19]} 17. Ne4 {[%clk 0:01:50]}  O-O-O {[%clk 0:02:12]} 18. a4 {[%clk 0:01:30]}  Nd5 {[%clk 0:02:05]} 19. Qh3 {[%clk 0:01:00]}  Nb4 {[%clk 0:02:00]} 20. Bf3 {[%clk 0:00:49]}  Nc2 {[%clk 0:01:54]} 21. Be3 {[%clk 0:00:49]}  Nxa1 {[%clk 0:01:51]} 22. Rxa1 {[%clk 0:00:49]}  Bd5 {[%clk 0:01:50]} 23. Nc3 {[%clk 0:00:48]}  c6 {[%clk 0:01:45]} 24. Nxd5 {[%clk 0:00:35]}  cxd5 {[%clk 0:01:45]} 25. Qf1 {[%clk 0:00:34]}  Kb8 {[%clk 0:01:38]} 26. b3 {[%clk 0:00:33]}  cxb3 {[%clk 0:01:34]} 27. Qd3 {[%clk 0:00:30]}  Ka8 {[%clk 0:01:31]} 28. Qxb3 {[%clk 0:00:30]}  Rb8 {[%clk 0:01:32]} 29. Qd3 {[%clk 0:00:31]}  h6 {[%clk 0:01:30]} 30. a5 {[%clk 0:00:25]}  Bg5 {[%clk 0:01:29]} 31. a6 {[%clk 0:00:24]}  h3 {[%clk 0:01:26]} 32. Bd1 {[%clk 0:00:20]}  Rb4 {[%clk 0:01:21]} 33. Rc1 {[%clk 0:00:15]}  Rc8 {[%clk 0:01:11]} 34. Rxc8+ {[%clk 0:00:14]}  Qxc8 {[%clk 0:01:12]} 35. f4 {[%clk 0:00:13]}  Bd8 {[%clk 0:01:00]} 36. Kf2 {[%clk 0:00:14]}  Bh4+ {[%clk 0:00:54]} 37. Kf3 {[%clk 0:00:14]}  Qc4 {[%clk 0:00:53]} 38. Be2 {[%clk 0:00:10]}  Qxd3 {[%clk 0:00:51]} 39. Bxd3 {[%clk 0:00:11]}  Rb2 {[%clk 0:00:48]} 40. f5 {[%clk 0:00:10]}  Bg5 {[%clk 0:00:41]} 41. fxe6 {[%clk 0:00:10]}  fxe6 {[%clk 0:00:41]} 42. Bxg5 {[%clk 0:00:07]}  hxg5 {[%clk 0:00:42]} 43. Bg6 {[%clk 0:00:08]}  Rb6 {[%clk 0:00:40]} 44. Kg3 {[%clk 0:00:07]}  Rxa6 {[%clk 0:00:40]} 45. Kxh3 {[%clk 0:00:08]}  Kb7 {[%clk 0:00:40]} 46. Kg3 {[%clk 0:00:08]}  Ra3+ {[%clk 0:00:40]} 47. Kg2 {[%clk 0:00:08]}  Kc7 {[%clk 0:00:41]} 48. h4 {[%clk 0:00:06]}  gxh4 {[%clk 0:00:41]} 0-1


[Site "https://www.chess.com"]

[Event "Titled Tuesday Blitz April 25 Early 2023"]
[White "Moussard, Jules"]
[Black "Naroditsky, Daniel"]
[WhiteFideId "642908"]
[BlackFideId "2026961"]
[WhiteElo "2610"]
[BlackElo "2633"]
[Result "1/2-1/2"]
[Round "08"]
[TimeControl "180+2"]
[Date "2023.04.25"]
[WhiteClock "0:01:11"]
[BlackClock "0:00:28"]

1. e4 {[%clk 0:03:00]}  c5 {[%clk 0:02:57]} 2. Nf3 {[%clk 0:03:01]}  d6 {[%clk 0:02:58]} 3. d4 {[%clk 0:03:01]}  cxd4 {[%clk 0:02:59]} 4. Nxd4 {[%clk 0:03:02]}  Nf6 {[%clk 0:02:59]} 5. Nc3 {[%clk 0:03:03]}  a6 {[%clk 0:03:00]} 6. h3 {[%clk 0:03:01]}  e5 {[%clk 0:02:59]} 7. Nb3 {[%clk 0:03:00]}  Be7 {[%clk 0:02:57]} 8. Be3 {[%clk 0:02:58]}  Be6 {[%clk 0:02:48]} 9. Qd2 {[%clk 0:02:54]}  a5 {[%clk 0:02:48]} 10. Bb5+ {[%clk 0:02:48]}  Nc6 {[%clk 0:02:48]} 11. a4 {[%clk 0:02:47]}  O-O {[%clk 0:02:47]} 12. O-O-O {[%clk 0:02:45]}  Nb4 {[%clk 0:02:47]} 13. Kb1 {[%clk 0:02:38]}  Rc8 {[%clk 0:02:46]} 14. f3 {[%clk 0:02:14]}  d5 {[%clk 0:02:44]} 15. exd5 {[%clk 0:02:10]}  Nfxd5 {[%clk 0:02:37]} 16. Nxd5 {[%clk 0:01:55]}  Bxd5 {[%clk 0:02:25]} 17. c4 {[%clk 0:01:54]}  Be6 {[%clk 0:01:56]} 18. Qxd8 {[%clk 0:01:22]}  Bf5+ {[%clk 0:01:56]} 19. Ka1 {[%clk 0:01:22]}  Nc2+ {[%clk 0:01:54]} 20. Ka2 {[%clk 0:01:23]}  Nb4+ {[%clk 0:01:54]} 21. Ka1 {[%clk 0:01:23]}  Rfxd8 {[%clk 0:01:44]} 22. Bb6 {[%clk 0:01:08]}  Nc2+ {[%clk 0:01:36]} 23. Ka2 {[%clk 0:01:08]}  Nb4+ {[%clk 0:01:37]} 24. Ka1 {[%clk 0:01:09]}  Rxd1+ {[%clk 0:00:39]} 25. Rxd1 {[%clk 0:01:10]}  Nc2+ {[%clk 0:00:40]} 26. Ka2 {[%clk 0:01:10]}  Nb4+ {[%clk 0:00:40]} 27. Ka1 {[%clk 0:01:10]}  Nc2+ {[%clk 0:00:30]} 28. Ka2 {[%clk 0:01:11]}  Nb4+ {[%clk 0:00:28]} 29. Ka1 {[%clk 0:01:11]} 1/2-1/2


[Site "https://www.chess.com"]

[Event "Titled Tuesday Blitz April 25 Early 2023"]
[White "Deac, Bogdan-Daniel"]
[Black "Andreikin, Dmitry"]
[WhiteFideId "1226380"]
[BlackFideId "4158814"]
[WhiteElo "2649"]
[BlackElo "2736"]
[Result "1-0"]
[Round "08"]
[TimeControl "180+2"]
[Date "2023.04.25"]
[WhiteClock "0:00:05"]
[BlackClock "0:00:04"]

1. d4 {[%clk 0:03:00]}  d5 {[%clk 0:02:58]} 2. c4 {[%clk 0:03:01]}  e6 {[%clk 0:02:58]} 3. Nc3 {[%clk 0:03:00]}  a6 {[%clk 0:02:58]} 4. cxd5 {[%clk 0:02:59]}  exd5 {[%clk 0:02:59]} 5. a3 {[%clk 0:03:00]}  h6 {[%clk 0:02:56]} 6. Bf4 {[%clk 0:02:59]}  Nf6 {[%clk 0:02:56]} 7. e3 {[%clk 0:02:59]}  Bd6 {[%clk 0:02:56]} 8. Nge2 {[%clk 0:02:56]}  O-O {[%clk 0:02:55]} 9. g3 {[%clk 0:02:55]}  c6 {[%clk 0:02:49]} 10. Bg2 {[%clk 0:02:54]}  Re8 {[%clk 0:02:50]} 11. O-O {[%clk 0:02:52]}  Bf8 {[%clk 0:02:49]} 12. h3 {[%clk 0:02:33]}  Nbd7 {[%clk 0:02:35]} 13. g4 {[%clk 0:02:32]}  Be7 {[%clk 0:02:26]} 14. f3 {[%clk 0:02:10]}  Nf8 {[%clk 0:02:08]} 15. e4 {[%clk 0:02:04]}  dxe4 {[%clk 0:01:58]} 16. fxe4 {[%clk 0:02:05]}  Ng6 {[%clk 0:01:58]} 17. Bg3 {[%clk 0:01:58]}  Be6 {[%clk 0:01:53]} 18. Qd3 {[%clk 0:01:48]}  Qb6 {[%clk 0:01:41]} 19. Qf3 {[%clk 0:01:29]}  Rad8 {[%clk 0:01:34]} 20. Bf2 {[%clk 0:01:25]}  Qc7 {[%clk 0:01:08]} 21. Rac1 {[%clk 0:01:23]}  Bc4 {[%clk 0:00:54]} 22. Kh1 {[%clk 0:01:15]}  b5 {[%clk 0:00:34]} 23. Bg3 {[%clk 0:01:08]}  Qb6 {[%clk 0:00:30]} 24. h4 {[%clk 0:00:37]}  c5 {[%clk 0:00:26]} 25. e5 {[%clk 0:00:20]}  cxd4 {[%clk 0:00:20]} 26. exf6 {[%clk 0:00:20]}  Bxf6 {[%clk 0:00:21]} 27. Ne4 {[%clk 0:00:20]}  Bxh4 {[%clk 0:00:15]} 28. Rxc4 {[%clk 0:00:09]}  bxc4 {[%clk 0:00:15]} 29. Qxf7+ {[%clk 0:00:09]}  Kh8 {[%clk 0:00:16]} 30. Bc7 {[%clk 0:00:08]}  Qxb2 {[%clk 0:00:12]} 31. Bxd8 {[%clk 0:00:07]}  Rxd8 {[%clk 0:00:10]} 32. Qxg6 {[%clk 0:00:05]}  Qxe2 {[%clk 0:00:10]} 33. Nd6 {[%clk 0:00:05]}  Kg8 {[%clk 0:00:03]} 34. Bd5+ {[%clk 0:00:03]}  Kh8 {[%clk 0:00:03]} 35. Nf7+ {[%clk 0:00:03]}  Kg8 {[%clk 0:00:03]} 36. Nxh6+ {[%clk 0:00:03]}  Kh8 {[%clk 0:00:03]} 37. Nf7+ {[%clk 0:00:04]}  Kg8 {[%clk 0:00:04]} 38. Nxd8+ {[%clk 0:00:05]}  Kh8 {[%clk 0:00:04]} 39. Rf8# {[%clk 0:00:05]} 1-0


[Site "https://www.chess.com"]